bitfinex-derivatives/quotes_BTCF0:USTF0_20251215
["timestamp","ask_amount","ask_price","bid_price","bid_amount"]
[1765764364437,0.09469,89495.0,89494.0,0.17810762]
[1765764364741,0.09469,89495.0,89494.0,0.17710762]
[1765764365945,0.09469,89501.0,89500.0,0.1881122]
[1765764366142,0.53373,89501.0,89500.0,0.5489122]
[1765764366344,0.62095,89501.0,89500.0,0.5489122]
[1765764366544,0.18191,89501.0,89500.0,0.5489122]
[1765764366946,0.56263,89501.0,89500.0,0.5489122]
[1765764368745,0.18207742,89511.0,89510.0,0.188111]
[1765764368941,0.78747742,89511.0,89510.0,0.17694]
[1765764369145,0.88331742,89511.0,89510.0,0.17694]
[1765764369647,0.88331742,89511.0,89510.0,0.0909]
[1765764369849,0.88431742,89511.0,89510.0,0.17694]
[1765764371046,0.88631742,89511.0,89510.0,0.17694]
[1765764372547,0.18191,89509.0,89508.0,0.3608]
[1765764372747,0.18191,89509.0,89508.0,0.4517]
[1765764373140,0.18191,89509.0,89508.0,0.3608]
[1765764373350,0.18191,89501.0,89500.0,0.4517]
[1765764374050,0.18191,89501.0,89500.0,0.3608]
[1765764375239,0.18855629,89509.0,89508.0,0.17694]
[1765764375548,0.87147629,89509.0,89508.0,0.0909]
[1765764376053,0.18191,89502.0,89501.0,0.1881121]
[1765764377358,0.18191,89502.0,89501.0,0.17694]
[1765764379156,0.18191,89502.0,89500.0,0.3719722]
[1765764379157,0.1930821,89501.0,89500.0,0.3608]
[1765764382559,0.1940821,89501.0,89500.0,0.3608]
[1765764383150,0.1950821,89501.0,89500.0,0.3608]
[1765764384161,0.1940821,89501.0,89500.0,0.3608]
[1765764384359,0.1950821,89501.0,89500.0,0.3608]
[1765764385063,0.1940821,89501.0,89500.0,0.3608]
[1765764385264,0.1950821,89501.0,89500.0,0.3608]
[1765764387558,0.18206,89495.0,89494.0,0.53912762]
[1765764389668,0.0111725,89498.0,89494.0,0.53912762]
[1765764389669,0.53071,89507.0,89506.0,0.16265]
[1765764390272,0.1810819,89503.0,89502.0,0.16265]
[1765764390470,0.16991,89496.0,89495.0,0.21316]
[1765764390672,0.53071,89507.0,89506.0,0.16265]
[1765764390862,1.23143,89507.0,89506.0,0.16265]
[1765764391171,1.23343,89507.0,89506.0,0.16265]
[1765764391968,0.181082,89503.0,89502.0,0.07996]
[1765764392171,0.350992,89503.0,89502.0,0.16265]
[1765764393174,0.351992,89503.0,89502.0,0.16265]
[1765764393376,0.34082,89503.0,89502.0,0.16265]
[1765764393775,0.34182,89503.0,89502.0,0.16265]
[1765764395177,0.26011,89503.0,89502.0,0.16265]
[1765764395365,0.0902,89503.0,89502.0,0.57396]
[1765764395569,0.78976,89503.0,89502.0,0.57396]
[1765764396572,0.95967,89503.0,89502.0,0.57396]
[1765764396771,0.95967,89503.0,89502.0,0.52345]
[1765764396967,0.87047,89503.0,89502.0,0.52345]
[1765764397276,0.87047,89503.0,89502.0,0.44076]
[1765764397672,0.87047,89503.0,89502.0,0.57396]
[1765764397881,0.78227,89503.0,89502.0,0.57396]
[1765764398180,0.70056,89503.0,89502.0,0.57396]
[1765764398674,0.00564629,89509.0,89502.0,0.57396]
[1765764398675,0.16991,89509.0,89508.0,0.1738212]
[1765764398880,0.87043,89509.0,89508.0,0.1738212]
[1765764400079,0.87143,89509.0,89508.0,0.1738212]
[1765764400276,0.87243,89509.0,89508.0,0.1738212]
[1765764400484,0.70252,89509.0,89508.0,0.1738212]
[1765764400778,0.78423,89509.0,89508.0,0.1738212]
[1765764401081,0.87243,89509.0,89508.0,0.1738212]
[1765764402183,0.78423,89509.0,89508.0,0.1738212]
[1765764403674,0.08371,89509.0,89508.0,0.1738212]
[1765764403869,0.87235,89509.0,89508.0,0.1738212]
[1765764404075,0.78415,89509.0,89508.0,0.1738212]
[1765764404276,0.87235,89509.0,89508.0,0.1738212]
[1765764404871,0.78415,89509.0,89508.0,0.1738212]
[1765764405282,0.87235,89509.0,89508.0,0.1738212]
[1765764405582,2e-08,89511.0,89510.0,0.16265]
[1765764405776,0.16991,89538.0,89537.0,0.21316]
[1765764407182,0.17591,89538.0,89537.0,0.21316]
[1765764407487,0.17591,89538.0,89537.0,0.16265]
[1765764409586,0.18191,89538.0,89537.0,0.16265]
[1765764410173,0.09371,89538.0,89537.0,0.16265]
[1765764410974,0.18191,89538.0,89537.0,0.16265]
[1765764411592,0.18191,89538.0,89535.0,0.3608]
[1765764411593,0.16991,89536.0,89535.0,0.3608]
[1765764411777,0.0509976,89537.0,89532.0,0.44076]
[1765764411981,0.16991,89533.0,89532.0,0.52345]
[1765764412492,0.08171,89533.0,89532.0,0.52345]
[1765764413090,0.005,89536.0,89535.0,0.16265]
[1765764413292,0.7062,89536.0,89535.0,0.16265]
[1765764413993,0.78191,89536.0,89535.0,0.16265]
[1765764414598,0.7002,89536.0,89535.0,0.16265]
[1765764415393,0.7052,89536.0,89535.0,0.16265]
[1765764415897,0.7112,89536.0,89535.0,0.16265]
[1765764416285,0.37211,89557.0,89556.0,0.16265]
[1765764416481,0.37211,89557.0,89556.0,0.52345]
[1765764416681,0.38881291,89557.0,89556.0,0.3608]
[1765764416991,0.15923,89549.0,89548.0,0.07603752]
[1765764417390,0.15923,89549.0,89548.0,0.15535752]
[1765764417994,0.0757,89549.0,89548.0,0.16652372]
[1765764418396,0.37596781,89557.0,89556.0,0.15519]
[1765764418689,0.37896781,89557.0,89556.0,0.51599]
[1765764419090,0.37596781,89557.0,89556.0,0.51599]
[1765764419286,0.15923,89557.0,89556.0,0.51599]
[1765764419492,0.3608,89582.0,89570.0,0.15519]
[1765764419493,0.16719998,89571.0,89570.0,0.15519]
[1765764419690,0.17282455,89571.0,89570.0,0.15519]
[1765764420589,0.15923,89568.0,89567.0,0.3608]
[1765764420789,0.15923,89568.0,89567.0,0.5271539]
[1765764420999,0.00996998,89571.0,89570.0,0.15519]
[1765764421598,0.00996998,89571.0,89570.0,0.51599]
[1765764422594,0.00796998,89571.0,89570.0,0.51599]
[1765764423502,0.00896998,89571.0,89570.0,0.51599]
[1765764423797,0.15923,89591.0,89590.0,0.15519]
[1765764424299,0.15923,89588.0,89587.0,0.3608]
[1765764424600,0.15923,89588.0,89587.0,0.43667]
[1765764424798,0.15923,89588.0,89587.0,0.51599]
[1765764426991,0.15923,89583.0,89582.0,0.00016742]
[1765764427700,0.15923,89583.0,89560.0,0.56299]
[1765764427701,0.15923,89561.0,89560.0,0.56299]
[1765764428199,0.15923,89561.0,89560.0,0.3608]
[1765764428901,0.15923,89561.0,89560.0,0.3618]
[1765764429292,0.1703956,89553.0,89552.0,0.00016742]
[1765764429497,1.2310756,89553.0,89552.0,0.00016742]
[1765764429998,0.15923,89542.0,89541.0,0.3608]
[1765764430997,0.15923,89542.0,89541.0,0.56299]
[1765764431497,0.15939752,89550.0,89549.0,0.15519]
[1765764431692,0.00016752,89550.0,89549.0,0.51599]
[1765764434105,0.00016752,89550.0,89549.0,0.52099]
[1765764434508,0.00016752,89550.0,89549.0,0.51799]
[1765764434705,0.00016752,89550.0,89549.0,0.52099]
[1765764435900,0.00016752,89550.0,89549.0,0.52199]
[1765764436102,0.19892,89562.0,89549.0,0.52199]
[1765764436400,0.19892,89562.0,89561.0,0.5271546]
[1765764437206,0.27462,89562.0,89561.0,0.5271546]
[1765764437402,0.35815,89562.0,89561.0,0.5271546]
[1765764437802,0.19892,89562.0,89561.0,0.5281546]
[1765764439111,0.19892,89562.0,89561.0,0.5291546]
[1765764440714,0.00016699,89570.0,89569.0,0.1663536]
[1765764440905,0.00016699,89570.0,89569.0,0.5271536]
[1765764442321,0.17056049,89570.0,89569.0,0.3608]
[1765764443013,0.15939699,89570.0,89569.0,0.3608]
[1765764443208,0.00016699,89570.0,89569.0,0.51599]
[1765764445211,0.29097062,89590.0,89589.0,0.15519]
[1765764445411,0.67317317,89590.0,89589.0,0.51599]
[1765764446303,0.67317317,89590.0,89589.0,0.43667]
[1765764446501,0.67717317,89590.0,89589.0,0.43667]
[1765764447717,0.67717317,89590.0,89589.0,0.3608]
[1765764447915,0.14652,89582.0,89581.0,0.15436752]
[1765764449018,0.66046317,89590.0,89589.0,0.1542]
[1765764449322,0.66046317,89590.0,89589.0,0.515]
[1765764451220,0.66446317,89590.0,89589.0,0.515]
[1765764451909,0.66046317,89590.0,89589.0,0.515]
[1765764453116,0.66046317,89590.0,89589.0,0.3608]
[1765764454316,0.14552,89582.0,89581.0,0.00016752]
[1765764454924,0.20556707,89582.0,89581.0,0.00016752]
[1765764455308,0.50632,89582.0,89581.0,0.00016752]
[1765764455714,0.14552,89567.0,89566.0,0.43551]
[1765764455917,0.14552,89558.0,89557.0,0.162565]
[1765764456416,0.69972,89567.0,89556.0,0.3608]
[1765764456417,0.84524,89567.0,89566.0,0.1514]
[1765764457117,0.14552,89572.0,89571.0,0.1625634]
[1765764457419,0.84524,89572.0,89571.0,0.1625634]
[1765764457816,0.85079698,89572.0,89571.0,0.1625634]
[1765764458114,0.00016752,89575.0,89574.0,0.1514]
[1765764458322,0.00016752,89575.0,89574.0,0.5122]
[1765764458615,0.07343752,89575.0,89574.0,0.5122]
[1765764459009,0.00016752,89575.0,89574.0,0.5122]
[1765764460019,0.00016752,89575.0,89574.0,0.5132]
[1765764461019,0.56364,89587.0,89586.0,0.19687]
[1765764461217,0.56364,89587.0,89586.0,0.55767]
[1765764461615,0.56364,89587.0,89586.0,0.5688315]
[1765764461813,0.76540776,89591.0,89590.0,0.162561]
[1765764462012,0.91092776,89591.0,89590.0,0.162561]
[1765764462219,0.8508743,89591.0,89590.0,0.085871]
[1765764462413,0.14552,89587.0,89586.0,0.4921415]
[1765764462613,0.14552,89587.0,89586.0,0.4961415]
[1765764462926,0.14552,89587.0,89586.0,0.5728315]
[1765764463217,0.14552,89587.0,89586.0,0.5708315]
[1765764463816,0.14552,89587.0,89586.0,0.5718315]
[1765764464119,0.00099999,89620.0,89586.0,0.5718315]
[1765764464120,0.06012257,89593.0,89592.0,0.1514]
[1765764464320,0.20564257,89593.0,89592.0,0.07471]
[1765764464518,0.20564257,89593.0,89591.0,0.0111609]
[1765764464519,0.14552,89592.0,89591.0,0.1625609]
[1765764466226,0.14552,89589.0,89588.0,0.0111612]
[1765764466428,0.14552,89589.0,89588.0,0.1625612]
[1765764466625,0.14552,89589.0,89588.0,0.0111612]
[1765764467020,0.14552,89589.0,89588.0,0.0858712]
[1765764467222,0.14552,89589.0,89588.0,0.1625612]
[1765764467522,0.14552,89589.0,89588.0,0.1645612]
[1765764468323,0.20564257,89594.0,89593.0,0.1625606]
[1765764469328,0.14552,89594.0,89593.0,0.1625606]
[1765764469727,0.14552,89594.0,89593.0,0.1514]
[1765764469929,0.69972,89595.0,89589.0,0.0858711]
[1765764470129,0.84524,89595.0,89594.0,0.3608]
[1765764471527,0.84524,89595.0,89594.0,0.3618]
[1765764473819,0.84524,89595.0,89586.0,0.3608]
[1765764473820,0.1566814,89587.0,89586.0,0.3608]
[1765764474222,0.14552,89587.0,89586.0,0.5122]
[1765764474427,0.27547,89591.0,89590.0,0.1514]
[1765764474627,0.97515,89591.0,89590.0,0.1514]
[1765764474924,1.0474,89591.0,89590.0,0.1514]
[1765764476923,1.0474,89591.0,89590.0,0.1524]
[1765764477126,1.0474,89591.0,89590.0,0.07571]
[1765764477326,1.0474,89591.0,89590.0,0.07671]
[1765764478227,1.0474,89591.0,89590.0,0.14892]
[1765764479126,1.0474,89591.0,89590.0,0.14992]
[1765764479827,1.0474,89591.0,89590.0,0.14892]
[1765764480022,1.0474,89591.0,89590.0,0.14992]
[1765764480228,1.0474,89591.0,89590.0,0.002]
[1765764480732,1.0474,89591.0,89590.0,0.14701]
[1765764480932,1.0474,89591.0,89590.0,0.14601]
[1765764481129,1.0474,89591.0,89590.0,0.001]
[1765764481334,1.0585609,89591.0,89590.0,0.001]
[1765764481520,0.13588,89587.0,89586.0,0.3608]
[1765764481725,0.2022,89591.0,89590.0,0.156171]
[1765764481936,1.03772,89591.0,89590.0,0.156171]
[1765764482320,0.97028,89591.0,89590.0,0.156171]
[1765764482525,1.03772,89591.0,89590.0,0.156171]
[1765764483134,1.03772,89591.0,89590.0,0.157171]
[1765764483727,1.03772,89591.0,89590.0,0.083961]
[1765764483932,1.03772,89591.0,89590.0,0.157171]
[1765764484126,1.03772,89591.0,89590.0,0.156171]
[1765764484332,1.03772,89591.0,89590.0,0.158171]
[1765764484528,1.03772,89591.0,89590.0,0.518971]
[1765764485134,1.03772,89591.0,89590.0,0.373961]
[1765764485339,1.03772,89591.0,89590.0,0.518971]
[1765764487138,1.03772,89591.0,89590.0,0.517971]
[1765764487345,1.03772,89591.0,89590.0,0.518971]
[1765764488040,1.03772,89591.0,89590.0,0.517971]
[1765764488239,1.03772,89591.0,89590.0,0.518971]
[1765764489651,0.90184,89591.0,89590.0,0.518971]
[1765764489850,0.83552,89591.0,89590.0,0.518971]
[1765764490037,0.14132621,89596.0,89595.0,0.1561704]
[1765764490237,0.13588,89593.0,89592.0,0.0718]
[1765764490538,0.13588,89591.0,89590.0,0.3628]
[1765764490738,0.216234,89591.0,89590.0,0.3628]
[1765764490948,0.13588,89591.0,89590.0,0.3628]
[1765764491146,0.13588,89591.0,89590.0,0.3618]
[1765764491538,0.72671,89593.0,89592.0,0.18842]
[1765764491539,0.6996,89593.0,89592.0,0.18842]
[1765764491737,0.21621998,89598.0,89597.0,0.14501]
[1765764491939,0.91581998,89598.0,89597.0,0.14501]
[1765764492243,0.13588,89594.0,89593.0,0.0111606]
[1765764492441,0.13588,89594.0,89593.0,0.0829606]
[1765764492644,0.13588,89591.0,89590.0,0.4326]
[1765764492947,0.13588,89591.0,89590.0,0.50681]
[1765764493343,0.13588,89596.0,89595.0,0.14501]
[1765764494246,0.6996,89598.0,89597.0,0.14501]
[1765764494452,0.76804,89598.0,89597.0,0.14501]
[1765764494741,0.83548,89598.0,89597.0,0.14501]
[1765764495146,0.6996,89598.0,89597.0,0.14501]
[1765764495356,0.3608,89610.0,89597.0,0.14501]
[1765764495357,0.08033998,89614.0,89613.0,0.1561682]
[1765764495541,0.13588,89616.0,89615.0,0.14501]
[1765764495844,0.13588,89616.0,89615.0,2.00581]
[1765764496845,0.13588,89606.0,89605.0,0.14517742]
[1765764497047,0.13588,89606.0,89605.0,0.00016742]
[1765764498543,0.13588,89606.0,89605.0,0.14617742]
[1765764499059,0.13588,89606.0,89605.0,0.14717742]
[1765764499246,0.13588,89606.0,89605.0,0.00216742]
[1765764499456,0.13588,89606.0,89605.0,0.14617742]
[1765764499657,0.13588,89606.0,89605.0,0.14717742]
[1765764500556,0.14134171,89606.0,89605.0,0.14717742]
[1765764501051,0.3608,89622.0,89613.0,0.04341]
[1765764501247,0.00561107,89635.0,89624.0,0.14501]
[1765764501560,0.29319584,89650.0,89624.0,0.14501]
[1765764501561,0.08033998,89650.0,89649.0,0.14501]
[1765764501748,0.57439372,89660.0,89641.0,0.0111547]
[1765764501749,0.21621998,89655.0,89654.0,0.14501]
[1765764501950,0.13588,89642.0,89641.0,0.14517732]
[1765764502257,0.65782302,89660.0,89649.0,0.07321]
[1765764502258,0.13588,89650.0,89649.0,0.07321]
[1765764502449,0.76872,89650.0,89649.0,0.14501]
[1765764502846,0.83616,89650.0,89649.0,0.14501]
[1765764503653,0.70028,89650.0,89649.0,0.14501]
[1765764503854,0.83616,89650.0,89649.0,0.14501]
[1765764504153,0.70028,89650.0,89649.0,0.14501]
[1765764504350,0.83616,89650.0,89649.0,0.14501]
[1765764504749,0.70328,89650.0,89649.0,0.14501]
[1765764504955,0.01108126,89682.0,89649.0,0.14501]
[1765764504956,0.07993067,89686.0,89670.0,0.04341]
[1765764505150,0.10011282,89720.0,89696.0,0.14501]
[1765764505345,0.14019372,89732.0,89719.0,0.14501]
[1765764505650,0.11154551,89727.0,89717.0,0.00016721]
[1765764505849,0.11154551,89727.0,89726.0,0.18842]
[1765764506160,0.11154551,89727.0,89726.0,0.3608]
[1765764506161,0.13588,89727.0,89726.0,0.3608]
[1765764506963,0.24118,89718.0,89717.0,0.00016721]
[1765764507151,0.89426,89718.0,89717.0,0.00016721]
[1765764507856,1.05308,89718.0,89712.0,0.7216]
[1765764508059,0.08688,89683.0,89682.0,0.3608]
[1765764508259,0.04344,89675.0,89650.0,0.00012534]
[1765764508459,0.19308302,89671.0,89652.0,0.0111533]
[1765764508657,0.34684,89670.0,89652.0,0.0111533]
[1765764509060,0.34684,89670.0,89657.0,0.00016721]
[1765764509061,0.12718,89658.0,89657.0,0.00016721]
[1765764509863,0.23871556,89658.0,89657.0,0.00016721]
[1765764510065,0.24118,89634.0,89633.0,0.3608]
[1765764510256,0.24118,89628.0,89614.0,0.07133]
[1765764510451,0.55648,89634.0,89627.0,0.11505]
[1765764511057,0.19308302,89640.0,89633.0,0.2263]
[1765764511058,0.00016731,89639.0,89633.0,0.2263]
[1765764511259,0.47528,89638.0,89633.0,0.2263]
[1765764511662,0.12243,89634.0,89625.0,0.07133]
[1765764511862,0.47528,89638.0,89632.0,0.2263]
[1765764511863,0.00011342,89633.0,89632.0,0.2263]
[1765764512063,0.3608,89637.0,89625.0,0.07133]
[1765764512264,0.47528,89638.0,89630.0,0.3608]
[1765764512462,0.00016731,89639.0,89633.0,0.001]
[1765764512666,0.002,89658.0,89654.0,0.2263]
[1765764512969,1.3954,89681.0,89680.0,0.2263]
[1765764513166,3.08e-06,89681.0,89680.0,0.2374498]
[1765764513365,3.08e-06,89681.0,89680.0,0.3087798]
[1765764513572,3.08e-06,89681.0,89680.0,0.6695798]
[1765764514167,3.08e-06,89681.0,89680.0,0.6705798]
[1765764514476,3.08e-06,89681.0,89680.0,0.65943]
[1765764515171,3.08e-06,89681.0,89680.0,0.66343]
[1765764516160,3.08e-06,89681.0,89680.0,0.65943]
[1765764516363,3.08e-06,89681.0,89680.0,0.66243]
[1765764516566,0.29264,89681.0,89680.0,0.004]
[1765764516767,0.29264,89681.0,89680.0,0.003]
[1765764517068,0.29264,89681.0,89680.0,0.007]
[1765764517473,0.29264,89681.0,89680.0,0.004]
[1765764517774,0.29264,89681.0,89680.0,0.008]
[1765764518165,0.29264,89681.0,89680.0,0.004]
[1765764518367,0.99472,89681.0,89680.0,0.008]
[1765764518571,0.99472,89681.0,89680.0,0.004]
[1765764518972,0.0111498,89680.0,89672.0,0.00016731]
[1765764519176,0.19267262,89682.0,89672.0,0.00016731]
[1765764519368,0.5986,89681.0,89672.0,0.00016731]
[1765764519573,0.5986,89681.0,89674.0,0.3608]
[1765764519775,0.3608,89684.0,89674.0,0.3608]
[1765764520080,0.85795,89683.0,89674.0,0.3608]
[1765764520469,0.001,89681.0,89674.0,0.3608]
[1765764521278,0.70292,89683.0,89674.0,0.3608]
[1765764521479,0.7140696,89683.0,89674.0,0.3608]
[1765764521677,0.7140696,89683.0,89672.0,0.00016731]
[1765764521875,0.0111501,89678.0,89672.0,0.00016731]
[1765764522070,0.19267262,89682.0,89672.0,0.00016731]
[1765764522477,0.7140695,89683.0,89672.0,0.00016731]
[1765764522774,0.70292,89683.0,89672.0,0.01131801]
[1765764523075,0.56462222,89682.0,89673.0,0.3608]
[1765764523278,0.32624,89673.0,89672.0,0.00016731]
[1765764523476,0.3373907,89673.0,89672.0,0.00016731]
[1765764523775,0.15603,89673.0,89672.0,0.00016731]
[1765764523979,0.85791,89673.0,89672.0,0.15852731]
[1765764524274,0.70192,89673.0,89672.0,0.32085731]
[1765764524477,0.3608,89682.0,89681.0,0.32069]
[1765764524680,0.70192,89682.0,89681.0,0.32069]
[1765764525072,0.15603,89677.0,89672.0,0.36196731]
[1765764525378,0.70192,89682.0,89676.0,0.15836]
[1765764525379,0.89459262,89682.0,89676.0,0.15836]
[1765764525972,0.70192,89682.0,89676.0,0.15836]
[1765764526568,0.70292,89682.0,89676.0,0.15836]
[1765764527078,0.70292,89682.0,89681.0,0.15836]
[1765764527269,0.85895,89682.0,89681.0,0.15836]
[1765764528075,0.7028,89682.0,89681.0,0.32069]
[1765764528475,0.001,89682.0,89681.0,0.32069]
[1765764530180,0.00016641,89689.0,89688.0,0.3318388]
[1765764530482,0.00016641,89689.0,89688.0,0.6926388]
[1765764531478,0.00316641,89689.0,89688.0,0.6926388]
[1765764532776,0.08652,89702.0,89701.0,0.32069]
[1765764532977,0.3608,89721.0,89711.0,0.32069]
[1765764533184,0.39248,89715.0,89711.0,0.32069]
[1765764533568,0.51683,89712.0,89711.0,0.32069]
[1765764533768,0.3608,89712.0,89711.0,0.32069]
[1765764534183,0.39248,89715.0,89714.0,0.32069]
[1765764534779,0.32624,89714.0,89713.0,0.10295]
[1765764535085,0.32624,89712.0,89711.0,0.001]
[1765764535476,0.32624,89712.0,89703.0,0.00016721]
[1765764535879,0.32624,89712.0,89711.0,0.001]
[1765764536080,0.70164,89717.0,89711.0,0.001]
[1765764536081,0.70164,89717.0,89713.0,0.10295]
[1765764536483,0.85318,89717.0,89716.0,0.15836]
[1765764536779,0.85318,89717.0,89716.0,0.31679]
[1765764536980,1.00191,89717.0,89716.0,0.31679]
[1765764537187,0.15154,89714.0,89713.0,0.41968]
[1765764537375,0.70164,89717.0,89713.0,0.41968]
[1765764537576,0.70164,89717.0,89716.0,0.31673]
[1765764538585,0.3608,89722.0,89721.0,0.31673]
[1765764538785,0.8602,89722.0,89721.0,0.31673]
[1765764538985,1.01174,89722.0,89721.0,0.31673]
[1765764539182,1.01174,89722.0,89713.0,0.10395]
[1765764539481,0.8602,89722.0,89713.0,0.42068]
[1765764539885,0.15154,89714.0,89713.0,0.42068]
[1765764540084,0.30027,89714.0,89713.0,0.42068]
[1765764540284,0.30027,89714.0,89713.0,0.41968]
[1765764540683,0.8723447,89722.0,89706.0,0.67753]
[1765764540890,0.30027,89707.0,89706.0,0.3608]
[1765764541094,0.30027,89707.0,89706.0,0.5191]
[1765764541285,1.00151,89707.0,89706.0,0.5191]
[1765764541589,1.00151,89707.0,89706.0,0.67753]
[1765764541978,0.30027,89704.0,89703.0,0.00016721]
[1765764542792,0.42289144,89704.0,89703.0,0.00016721]
[1765764542987,0.30027,89688.0,89687.0,0.3608]
[1765764543186,0.69223,89688.0,89687.0,0.3608]
[1765764543994,0.30027,89680.0,89679.0,0.00016721]
[1765764544288,0.30027,89680.0,89679.0,0.31689721]
[1765764544491,0.30027,89689.0,89688.0,0.25156]
[1765764544788,0.83654,89689.0,89688.0,0.40999]
[1765764544997,0.19267262,89700.0,89692.0,0.31673]
[1765764545204,0.70144,89695.0,89692.0,0.31673]
[1765764545398,0.15154,89693.0,89692.0,0.31673]
[1765764545992,0.00016689,89696.0,89695.0,0.31673]
[1765764546388,0.00016689,89696.0,89695.0,0.67753]
[1765764547494,0.00016689,89696.0,89695.0,0.68453]
[1765764547890,0.00016689,89696.0,89695.0,0.6956779]
[1765764548290,0.3608,89710.0,89709.0,0.3278762]
[1765764548603,0.3608,89722.0,89700.0,0.09326]
[1765764548604,0.3608,89722.0,89721.0,0.31673]
[1765764548786,0.82448,89722.0,89721.0,0.31673]
[1765764549202,1.12475,89722.0,89721.0,0.31673]
[1765764549601,1.36259,89722.0,89721.0,0.31673]
[1765764550199,1.36359,89722.0,89721.0,0.31673]
[1765764550401,1.36459,89722.0,89721.0,0.31673]
[1765764550598,1.06432,89722.0,89721.0,0.31673]
[1765764551698,1.0642,89722.0,89721.0,0.31673]
[1765764551901,1.06416,89722.0,89721.0,0.31673]
[1765764552396,0.15154,89714.0,89713.0,0.31689721]
[1765764552597,0.30027,89714.0,89713.0,0.31689721]
[1765764552998,0.30027,89714.0,89713.0,0.00016721]
[1765764553200,0.30027,89705.0,89694.0,0.011148]
[1765764553505,0.30027,89694.0,89693.0,0.3608]
[1765764554203,0.30027,89694.0,89693.0,0.67753]
[1765764554701,0.15154,89701.0,89700.0,0.25156]
[1765764554902,1.00167,89701.0,89700.0,0.25156]
[1765764555107,0.30027,89701.0,89700.0,0.25156]
[1765764555405,0.00016721,89702.0,89701.0,0.31673]
[1765764555596,0.00016721,89702.0,89701.0,0.6886772]
[1765764555998,1.39436,89735.0,89701.0,0.6886772]
[1765764555999,0.51234,89722.0,89721.0,0.31673]
[1765764556197,1.27325783,89722.0,89721.0,0.31673]
[1765764556700,0.42023783,89722.0,89721.0,0.31673]
[1765764556893,0.15154,89713.0,89712.0,0.09326]
[1765764557101,0.30027,89713.0,89712.0,0.09326]
[1765764557410,0.30027,89713.0,89712.0,0.25156]
[1765764557605,0.30027,89713.0,89712.0,0.09326]
[1765764557805,0.30027,89713.0,89712.0,0.25156]
[1765764558206,0.30027,89713.0,89712.0,0.25256]
[1765764558606,1.25493299,89722.0,89716.0,0.15843]
[1765764558607,0.05943783,89719.0,89716.0,0.15843]
[1765764558809,0.29924,89713.0,89712.0,0.09426]
[1765764559510,0.29924,89713.0,89712.0,0.41099]
[1765764559711,0.29924,89713.0,89712.0,0.40999]
[1765764560304,0.29924,89713.0,89712.0,0.41099]
[1765764560510,0.15051,89713.0,89712.0,0.41099]
[1765764561303,0.29876,89713.0,89712.0,0.41099]
[1765764562113,0.3099057,89713.0,89712.0,0.001]
[1765764562407,0.6707057,89713.0,89712.0,0.001]
[1765764562601,0.67620491,89713.0,89712.0,0.001]
[1765764563205,0.66505921,89713.0,89712.0,0.001]
[1765764563399,0.3608,89722.0,89721.0,0.31673]
[1765764563599,1.06760496,89722.0,89721.0,0.31673]
[1765764563810,1.06760496,89722.0,89721.0,0.1583]
[1765764564306,1.06760496,89722.0,89712.0,0.09426]
[1765764564307,0.28864,89713.0,89712.0,0.09326]
[1765764565004,0.28864,89713.0,89704.0,0.00016721]
[1765764565005,0.28752,89705.0,89704.0,0.00016721]
[1765764565198,0.34756758,89705.0,89704.0,0.00016721]
[1765764565411,0.28752,89705.0,89704.0,0.00016721]
[1765764565614,0.98654,89708.0,89707.0,0.31673]
[1765764565800,0.2853,89705.0,89704.0,0.00016721]
[1765764566115,0.6572457,89713.0,89712.0,0.001]
[1765764566306,1.3585257,89713.0,89712.0,0.001]
[1765764566502,0.2944088,89688.0,89687.0,0.3608]
[1765764566698,0.28326,89677.0,89676.0,0.24735]
[1765764566905,0.28326,89677.0,89676.0,0.10295]
[1765764567103,0.0111505,89675.0,89661.0,0.3608]
[1765764567309,0.64018442,89675.0,89662.0,0.011152]
[1765764567723,0.92158442,89675.0,89674.0,0.09116]
[1765764567915,0.7902705,89675.0,89674.0,0.09116]
[1765764568111,0.011151,89671.0,89661.0,0.36096721]
[1765764568413,0.2814,89665.0,89661.0,0.36096721]
[1765764568609,0.2814,89665.0,89664.0,0.10926]
[1765764569014,0.1407,89665.0,89664.0,0.3944]
[1765764569211,0.06004435,89668.0,89667.0,0.28514]
[1765764569406,0.06104435,89671.0,89670.0,0.28514]
[1765764569607,0.06004435,89680.0,89677.0,0.28514]
[1765764569810,0.06004435,89682.0,89677.0,0.28514]
[1765764570010,0.06004435,89683.0,89677.0,0.28514]
[1765764570303,0.06004435,89684.0,89677.0,0.28514]
[1765764570511,0.06004435,89683.0,89677.0,0.28514]
[1765764571009,0.06004435,89683.0,89677.0,0.28814]
[1765764572025,0.06004435,89683.0,89677.0,0.29114]
[1765764572319,0.06004435,89682.0,89677.0,0.29114]
[1765764572711,0.06004435,89683.0,89677.0,0.29114]
[1765764573122,0.27689721,89678.0,89677.0,0.006]
[1765764573329,0.63769721,89678.0,89677.0,0.006]
[1765764573818,0.35698025,89678.0,89677.0,0.006]
[1765764574013,0.27689721,89678.0,89677.0,0.006]
[1765764574213,0.28804731,89678.0,89677.0,0.005]
[1765764574416,0.27689721,89678.0,89677.0,0.005]
[1765764574618,0.70172721,89678.0,89677.0,0.28862]
[1765764575019,0.70172721,89678.0,89677.0,0.28562]
[1765764575232,0.83638721,89678.0,89677.0,0.28562]
[1765764575625,0.83638721,89678.0,89677.0,0.28362]
[1765764576013,0.00016721,89678.0,89677.0,0.28462]
[1765764576424,0.00016721,89678.0,89677.0,0.28562]
[1765764577327,0.00016721,89678.0,89677.0,0.28462]
[1765764577522,0.00016721,89678.0,89677.0,0.28662]
[1765764578521,0.00016721,89678.0,89677.0,0.28762]
[1765764579121,0.26405721,89678.0,89677.0,0.004]
[1765764580523,0.26405721,89678.0,89677.0,0.002]
[1765764581522,0.26405721,89678.0,89677.0,0.001]
[1765764582227,0.26405721,89678.0,89677.0,0.002]
[1765764582731,0.26405721,89678.0,89677.0,0.001]